bitfinex/quotes_ETHUSD_20260111
["timestamp","ask_amount","ask_price","bid_price","bid_amount"]
[1768142358111,0.00280312,3114.3,3114.2,1.21619302]
[1768142361933,0.00280312,3114.3,3114.2,0.252]
[1768142368254,6.420958,3114.8,3114.2,0.252]
[1768142368255,3.21123329,3114.9,3114.2,1.23226373]
[1768142368750,3.21027287,3115.0,3114.5,0.00080336]
[1768142370255,6.42036844,3115.1,3114.5,0.00080336]
[1768142370943,6.42036844,3115.1,3114.5,0.96499638]
[1768142374669,6.42192744,3115.3,3114.5,0.96499638]
[1768142374837,7.39167505,3115.3,3114.5,0.96499638]
[1768142375762,7.45727748,3115.3,3114.5,0.96499638]
[1768142376548,7.39167505,3115.3,3114.5,0.96499638]
[1768142376775,0.002,3115.3,3114.5,0.96499638]
[1768142377072,0.002,3115.3,3114.6,1.01584334]
[1768142377281,0.002,3115.3,3114.6,1.01422666]
[1768142377982,0.002,3114.8,3114.6,1.01422666]
[1768142379035,0.002,3114.8,3114.7,0.9998072]
[1768142379975,0.00080328,3115.8,3114.8,0.98373649]
[1768142380176,3.20976138,3115.5,3114.9,0.9998072]
[1768142380381,3.27731071,3115.6,3114.9,0.99842388]
[1768142380666,0.06560243,3115.5,3114.9,0.01468739]
[1768142381037,3.21170828,3115.6,3114.9,0.99842388]
[1768142381038,0.002,3115.6,3114.9,0.99842388]
[1768142381647,0.06760243,3115.6,3114.9,0.99842388]
[1768142381965,0.002,3115.6,3114.9,1.12684489]
[1768142383963,0.06760243,3115.6,3114.9,0.99842388]
[1768142384270,0.71635333,3115.6,3114.9,0.99842388]
[1768142384561,6.48511775,3115.5,3114.9,0.01468739]
[1768142384766,6.48511775,3115.5,3114.8,0.96315761]
[1768142385263,0.06560243,3115.4,3114.8,0.96315761]
[1768142385966,6.41951532,3115.5,3114.8,0.96315761]
[1768142386164,7.51310176,3115.5,3114.8,0.96315761]
[1768142386347,7.44749933,3115.5,3114.9,0.98373649]
[1768142386970,0.02181779,3115.4,3114.9,0.98373649]
[1768142387368,0.02181779,3115.4,3114.7,1.2518072]
[1768142387867,0.02181779,3115.4,3114.8,0.98373649]
[1768142388251,6.41951532,3115.5,3114.8,0.98373649]
[1768142388452,0.06560243,3115.4,3114.7,0.26807071]
[1768142388773,0.06560243,3115.4,3114.7,0.48964876]
[1768142390153,0.002,3115.2,3114.7,0.48964876]
[1768142391575,0.002,3115.2,3114.8,0.98373649]
[1768142392874,0.002,3115.6,3115.0,0.98373649]
[1768142393074,0.002,3115.6,3115.0,0.98207601]
[1768142393944,0.002,3115.6,3114.9,0.01607071]
[1768142393945,0.002,3115.6,3115.2,0.98373649]
[1768142394245,0.002,3115.6,3115.2,0.98239697]
[1768142395771,0.002,3115.6,3115.1,0.9998072]
[1768142396182,0.002,3115.6,3115.1,1.22290333]
[1768142396902,0.002,3115.6,3115.1,0.23916684]
[1768142397076,0.002,3115.6,3115.1,0.01607071]
[1768142398588,6.42130928,3115.6,3115.1,0.01607071]
[1768142398748,3.20965464,3115.6,3115.1,0.01607071]
[1768142398950,6.41930928,3115.6,3115.1,0.01607071]
[1768142400681,3.20965464,3115.6,3115.1,0.01607071]
[1768142401096,3.27820645,3115.7,3115.1,0.01607071]
[1768142401590,6.48781047,3115.7,3115.1,0.01607071]
[1768142402100,3.20960402,3115.7,3115.1,0.01607071]
[1768142402305,6.41920804,3115.7,3115.1,0.01607071]
[1768142402512,6.41920804,3115.7,3115.1,0.9998072]
[1768142402709,0.002,3115.3,3115.1,0.9998072]
[1768142420540,0.002,3115.3,3115.1,0.01607071]
[1768142420842,0.002,3115.3,3115.0,0.38141112]
[1768142426247,0.002,3115.3,3115.0,1.31465034]
[1768142426547,3.21170182,3115.6,3115.1,0.93323922]
[1768142426747,0.07060243,3116.2,3115.1,0.93323922]
[1768142426748,3.20888163,3116.4,3115.7,0.93323922]
[1768142426933,3.20888163,3116.4,3115.8,0.252]
[1768142427641,3.20888163,3116.4,3116.0,0.9]
[1768142427847,6.41776326,3116.4,3116.0,0.9]
[1768142428046,7.31824298,3116.4,3115.8,0.252]
[1768142428423,7.31824298,3116.4,3116.0,0.93323922]
[1768142428748,4.10936135,3116.4,3116.0,0.93323922]
[1768142429245,4.10936135,3116.4,3115.8,0.252]
[1768142429638,4.10936135,3116.4,3115.9,0.93323922]
[1768142430017,7.31824298,3116.4,3115.9,0.93323922]
[1768142430223,0.90047972,3116.3,3115.9,0.93323922]
[1768142430847,0.90047972,3116.3,3115.5,0.16761002]
[1768142431021,0.90047972,3116.3,3115.8,0.252]
[1768142431962,3.20903664,3116.2,3115.8,0.252]
[1768142432452,4.10951636,3116.2,3115.8,0.252]
[1768142432651,7.318553,3116.2,3115.8,0.252]
[1768142432945,7.318553,3116.2,3115.5,0.00083078]
[1768142432946,8.12359073,3116.2,3115.5,0.00083078]
[1768142433155,8.12359073,3116.2,3115.6,0.252]
[1768142433820,0.99670225,3116.1,3115.6,0.252]
[1768142436448,4.20594486,3116.0,3115.6,0.252]
[1768142437021,0.99670225,3115.9,3115.6,0.252]
[1768142438333,0.002,3115.8,3115.6,0.252]
[1768142442746,0.002,3115.8,3115.5,0.25283078]
[1768142444338,2.76894208,3116.0,3115.5,0.25283078]
[1768142444565,3.21118261,3116.1,3115.5,1.22568092]
[1768142444867,3.21118261,3116.1,3115.6,0.97285014]
[1768142446272,0.002,3116.1,3115.6,0.97285014]
[1768142451168,0.002,3116.1,3115.9,0.001]
[1768142453403,0.002,3116.1,3115.5,1.22568092]
[1768142454099,0.002,3116.1,3115.6,0.97285014]
[1768142456809,0.002,3116.1,3115.5,0.25283078]
[1768142457305,0.99870225,3116.1,3115.5,0.25283078]
[1768142457908,0.002,3116.1,3115.5,0.25283078]
[1768142458506,0.002,3116.1,3115.5,1.22568092]
[1768142459217,0.99870225,3116.1,3115.5,0.25283078]
[1768142459818,0.002,3116.1,3115.5,0.25283078]
[1768142461018,0.002,3116.1,3115.5,1.22568092]
[1768142461220,0.002,3116.1,3115.6,0.97285014]
[1768142463326,0.002,3116.1,3115.8,0.001]
[1768142473548,0.002,3116.1,3115.8,0.97890234]
[1768142474029,0.002,3116.1,3115.8,0.001]
[1768142475662,3.21113962,3116.1,3115.8,0.001]
[1768142475869,4.12916887,3116.2,3115.8,0.001]
[1768142476230,3.20913962,3116.1,3115.8,0.001]
[1768142477172,6.41827924,3116.1,3115.8,0.001]
[1768142477672,0.92008788,3116.0,3115.8,0.001]
[1768142479757,3.20934561,3115.9,3115.8,0.001]
[1768142479974,3.15919958,3115.9,3115.8,0.001]
[1768142480174,3.20934561,3115.9,3115.8,0.001]
[1768142480470,4.12933465,3116.0,3115.8,0.001]
[1768142481164,0.92008788,3115.9,3115.8,0.001]
[1768142481364,2.92098503,3115.9,3115.8,0.001]
[1768142481552,3.20934561,3115.9,3115.8,0.001]
[1768142481735,3.20924756,3116.0,3115.8,0.001]
[1768142481940,6.41849512,3116.0,3115.8,0.001]
[1768142482738,7.338583,3116.0,3115.8,0.001]
[1768142482944,3.20924756,3116.0,3115.8,0.001]
[1768142483131,3.20914991,3116.1,3115.8,0.001]
[1768142483471,3.20924756,3116.0,3115.8,0.001]
[1768142483877,6.41807328,3116.2,3115.8,0.001]
[1768142484539,7.33816116,3116.2,3115.8,0.001]
[1768142486635,4.12893589,3116.4,3115.8,0.001]
[1768142486834,1.05463914,3116.3,3115.8,0.001]
[1768142487845,1.05463914,3116.3,3115.8,0.97890234]
[1768142488284,3.20884801,3116.4,3115.8,0.97890234]
[1768142488772,3.20884801,3116.4,3115.5,0.25283078]
[1768142488948,3.20884801,3116.4,3115.6,0.97790234]
[1768142490336,4.12893589,3116.4,3115.6,0.97790234]
[1768142491274,0.92008788,3116.3,3115.6,0.97790234]
[1768142491449,0.92008788,3116.3,3115.5,1.23073312]
[1768142492848,0.92008788,3116.3,3115.5,0.25283078]
[1768142493735,0.99900589,3116.1,3115.5,0.25283078]
[1768142495939,0.99900589,3115.9,3115.5,0.25283078]
[1768142496950,3.20944861,3115.8,3115.5,0.25283078]
[1768142497551,3.20924261,3116.0,3115.5,0.25283078]
[1768142497752,3.20934561,3115.9,3115.5,0.25283078]
[1768142498676,3.20934561,3115.9,3115.8,0.001]
[1768142499165,6.41856524,3116.0,3115.8,0.001]
[1768142500880,3.20924261,3116.0,3115.8,0.001]
[1768142501770,6.41807328,3116.2,3115.8,0.001]
[1768142501946,7.41707917,3116.2,3115.8,0.001]
[1768142502147,6.41807328,3116.2,3115.8,0.001]
[1768142504269,6.4176614,3116.4,3115.8,0.001]
[1768142504445,1.06254795,3116.3,3115.8,0.001]
[1768142505275,6.41807328,3116.2,3115.8,0.001]
[1768142509881,7.41707917,3116.2,3115.8,0.001]
[1768142510051,6.41848522,3116.0,3115.8,0.001]
[1768142510778,0.002,3115.9,3115.8,0.001]
[1768142521792,3.21134561,3115.9,3115.8,0.001]
[1768142523798,0.002,3115.9,3115.5,0.25283078]
[1768142524179,0.96159037,3115.9,3115.5,0.25283078]
[1768142524999,0.96242115,3115.9,3115.4,0.25380336]
[1768142526608,6.41889722,3115.8,3115.4,0.25380336]
[1768142528901,3.20944861,3115.8,3115.4,0.25380336]
[1768142529104,6.41889722,3115.8,3115.4,0.25380336]
[1768142529300,6.41970058,3115.8,3115.2,0.97936192]
[1768142530174,0.99558949,3115.7,3115.0,0.001]
[1768142530775,0.99558949,3115.7,3114.8,0.252]
[1768142530776,0.99558949,3115.5,3114.6,0.89503773]
[1768142532701,6.41972138,3115.4,3114.6,0.89503773]
[1768142533868,7.41531087,3115.4,3114.6,0.89503773]
[1768142534071,6.41972138,3115.4,3114.6,0.89503773]
[1768142534300,6.37033881,3115.4,3114.9,0.001]
[1768142534499,3.12743198,3115.4,3114.9,0.001]
[1768142534679,3.20975766,3115.5,3114.9,0.89603773]
[1768142534880,0.002,3115.6,3115.1,0.89503773]
[1768142535184,3.20975766,3115.5,3115.1,0.89503773]
[1768142535593,6.41951532,3115.5,3115.1,0.89503773]
[1768142536175,6.41951532,3115.5,3114.9,0.89603773]
[1768142537094,0.99558949,3115.4,3114.9,0.001]
[1768142539006,6.41951532,3115.5,3114.9,0.001]
[1768142541513,6.41951532,3115.5,3114.9,0.89603773]
[1768142542891,0.99758949,3115.6,3114.9,0.89603773]
[1768142543097,0.002,3115.6,3114.9,0.89603773]
[1768142543813,0.99558949,3115.5,3114.9,0.001]
[1768142544015,0.002,3115.6,3114.9,0.89603773]
[1768142546204,3.20955162,3115.7,3115.0,0.89503773]
[1768142546517,3.04871458,3115.7,3115.2,0.001]
[1768142551227,4.45789075,3115.8,3115.2,0.001]
[1768142553607,3.46230126,3115.8,3115.2,0.89603773]
[1768142554015,3.46230126,3115.8,3115.2,0.001]
[1768142554194,3.46230126,3115.8,3115.2,0.89603773]
[1768142556425,3.21030126,3115.8,3115.3,0.03209963]
[1768142557432,3.21030126,3115.8,3115.2,0.89603773]
[1768142558231,0.00080336,3115.8,3115.2,0.89603773]
[1768142558397,3.20898567,3115.9,3115.2,0.89603773]
[1768142558600,0.002,3115.8,3115.5,0.00083161]
[1768142563422,0.95260355,3115.8,3115.5,0.00083161]
[1768142565340,4.16025819,3115.6,3115.5,0.00083161]
[1768142567640,3.20965464,3115.6,3115.5,0.00083161]
[1768142569239,4.16015517,3115.7,3115.5,0.00083161]
[1768142569738,7.3697082,3115.7,3115.5,0.00083161]
[1768142569939,7.3697082,3115.7,3115.5,0.00183161]
[1768142570141,0.95060355,3115.6,3115.5,0.00183161]
[1768142571813,4.16025819,3115.6,3115.5,0.00183161]
[1768142586740,7.36991283,3115.6,3114.9,0.89603773]
[1768142587038,7.36991283,3115.6,3114.9,0.001]
[1768142587238,0.91172661,3115.5,3114.9,0.001]
[1768142589150,6.41972138,3115.4,3114.9,0.001]
[1768142592207,3.20986069,3115.4,3114.9,0.001]
[1768142593770,3.20986069,3115.4,3115.2,0.001]
[1768142594148,0.002,3115.3,3115.2,0.001]
[1768142596297,1.42414609,3115.3,3115.2,0.001]
[1768142596595,1.42414609,3115.3,3114.9,0.001]
[1768142596878,0.002,3115.3,3114.9,0.001]
[1768142602046,0.92144101,3115.3,3114.9,0.001]
[1768142604374,6.42013352,3115.2,3114.9,0.001]
[1768142605600,7.33957453,3115.2,3114.9,0.001]
[1768142607166,0.92144101,3115.3,3114.9,0.001]
[1768142607402,2.0017349,3115.3,3114.9,0.001]
[1768142610690,6.42013352,3115.2,3114.9,0.001]
[1768142612205,7.33957453,3115.2,3114.9,0.001]
[1768142612699,0.91944101,3115.1,3114.9,0.001]
[1768142612886,0.91944101,3115.1,3114.2,0.89503773]
[1768142612887,0.00080336,3114.9,3114.2,0.89503773]
[1768142614187,0.90275047,3114.9,3114.2,0.89503773]
[1768142615198,6.420958,3114.8,3114.2,0.89503773]
[1768142615502,8.08047596,3114.8,3114.0,0.89503773]
[1768142615666,7.32290511,3114.8,3114.0,0.89503773]
[1768142618906,10.53338411,3114.8,3114.5,0.001]
[1768142619071,0.90194711,3114.7,3114.0,0.89503773]
[1768142619801,6.42137032,3114.6,3113.9,0.89584093]
[1768142621978,0.90194711,3114.6,3113.9,0.0008032]
[1768142622795,0.90194711,3114.5,3113.9,0.0008032]
[1768142622997,0.90194711,3114.4,3113.2,0.1664722]
[1768142623192,0.00080368,3113.7,3113.2,0.89503773]
[1768142623983,0.00080368,3113.7,3113.1,5.476611]
[1768142624184,0.90275079,3113.7,3113.0,0.89503773]
[1768142624489,0.00080368,3113.7,3113.0,0.89503773]
[1768142626515,0.90275079,3113.7,3112.7,0.89503773]
[1768142628302,6.42363898,3113.5,3112.7,0.89503773]
[1768142629518,3.21181949,3113.5,3112.7,0.89503773]
[1768142630213,0.90194711,3113.4,3112.7,0.89503773]
[1768142630520,6.42405164,3113.3,3112.7,0.89503773]
[1768142630992,3.21202582,3113.3,3112.7,0.89503773]
[1768142631321,4.11397293,3113.3,3112.5,0.89503773]
[1768142631499,3.21202582,3113.3,3112.5,0.89503773]
[1768142632593,6.4239086,3113.4,3112.5,0.89503773]
[1768142633189,6.4239086,3113.4,3112.4,0.00082914]
[1768142633190,0.90194711,3113.3,3112.4,0.00082914]
[1768142633915,0.90194711,3113.3,3112.4,0.89586687]
[1768142635312,0.90194711,3113.1,3112.4,0.00082914]
[1768142636498,0.90194711,3112.9,3112.4,0.00082914]
[1768142636817,3.21233536,3113.0,3112.4,0.00082914]
[1768142637023,3.46533536,3113.0,3112.4,0.00082914]
[1768142637544,6.67767072,3113.0,3112.4,0.00082914]
[1768142638129,7.57961783,3113.0,3112.4,0.00082914]
[1768142638642,8.33757961,3113.0,3112.4,0.00082914]
[1768142639138,7.57961783,3113.0,3112.4,0.00082914]
[1768142640540,0.90194711,3112.7,3112.4,0.00082914]
[1768142641509,0.90275023,3112.7,3112.0,0.001]
[1768142642323,0.00080312,3112.7,3112.0,0.89603773]
[1768142642523,0.253,3112.6,3112.0,0.89603773]
[1768142642726,3.46576015,3112.6,3112.0,0.89603773]
[1768142644759,3.21276015,3112.6,3112.0,0.89603773]
[1768142644958,3.21349178,3112.7,3112.0,0.89603773]
[1768142645159,3.46649178,3112.7,3112.0,0.89603773]
[1768142645663,4.44326768,3112.7,3112.0,0.89603773]
[1768142646162,0.25382914,3112.8,3112.1,0.89503773]
[1768142646366,0.25382914,3112.8,3112.3,0.0008032]
[1768142646664,0.19037185,3112.8,3112.3,0.0008032]
[1768142646857,3.46548994,3112.9,3112.4,0.00082996]
[1768142647461,0.9787759,3113.2,3112.4,0.89586769]
[1768142647638,0.002,3113.2,3112.4,0.89586769]
[1768142649083,0.002,3113.2,3112.5,0.89503773]
[1768142649256,0.002,3113.2,3112.7,0.89503773]
[1768142650437,3.96e-06,3113.5,3113.0,0.89503773]
[1768142653110,3.96e-06,3113.5,3113.1,0.89503773]
[1768142656514,3.96e-06,3113.5,3113.2,0.89503773]
[1768142657497,3.96e-06,3113.5,3113.2,4.10716002]
[1768142657702,0.25200197,3114.1,3113.4,0.93543251]
[1768142660898,1.23081364,3114.1,3113.4,0.93543251]
[1768142662902,1.23081364,3114.1,3113.4,0.96755173]
[1768142663304,1.23081364,3114.1,3113.5,2.423034]
[1768142663504,0.97961487,3114.3,3113.5,0.93543251]
[1768142663705,0.253,3114.2,3113.5,1.42343701]
[1768142666409,1.23261487,3114.3,3113.6,0.93543251]
[1768142666810,4.44361448,3114.3,3113.6,0.93543251]
[1768142668958,3.46480281,3114.3,3113.7,0.001]
[1768142670672,0.0008032,3114.3,3113.7,0.93643251]
[1768142673238,0.0008032,3114.3,3113.7,0.001]
[1768142673429,0.97961487,3114.3,3113.7,0.46462419]
[1768142673841,0.97961487,3114.3,3113.7,0.001]
[1768142674042,0.0008032,3114.3,3113.7,0.91386633]
[1768142676978,0.0008032,3114.3,3113.8,0.91286633]
[1768142678445,0.95200649,3114.3,3113.7,3.21260041]
[1768142678876,0.95200649,3114.3,3113.7,0.001]
[1768142679172,0.95200649,3114.3,3113.7,0.41355475]
[1768142680576,0.95200649,3114.3,3114.0,0.001]
[1768142681149,0.0008032,3114.3,3114.0,0.001]
[1768142686618,0.95200649,3114.3,3114.0,0.001]
[1768142687742,0.0008032,3114.3,3114.0,0.001]
[1768142689922,0.95200649,3114.3,3113.7,0.41355475]
[1768142692747,0.95200649,3114.3,3113.8,0.45381082]
[1768142692748,0.0008032,3114.3,3113.8,0.45381082]
[1768142692954,0.0008032,3114.3,3114.0,0.001]
[1768142693422,0.253,3114.6,3114.0,0.001]
[1768142693627,1.20420329,3114.6,3114.0,0.001]
[1768142694248,0.253,3114.6,3114.0,0.001]
[1768142694444,0.95320329,3114.8,3114.0,0.001]
[1768142694642,0.253,3114.7,3114.0,0.91386633]
[1768142694846,0.253,3114.7,3114.1,0.41259895]
[1768142695038,0.253,3114.7,3114.1,1.32546528]
[1768142699358,0.95120329,3114.6,3114.1,0.41259895]
[1768142701169,0.253,3114.7,3114.1,4.53664219]
[1768142701541,0.253,3114.7,3114.1,1.32546528]
[1768142701742,0.253,3114.7,3114.2,0.45377216]
[1768142702238,1.20420329,3114.7,3114.2,0.45377216]
[1768142702577,1.20420329,3114.7,3114.0,0.001]
[1768142704979,0.002,3114.4,3114.0,0.001]
[1768142705275,0.95474302,3114.6,3114.0,0.001]
[1768142706844,0.255,3114.7,3114.0,0.95419808]
[1768142707746,1.20974302,3114.7,3114.0,0.95419808]
[1768142708082,0.255,3114.7,3114.0,0.95419808]
[1768142708451,0.95170304,3114.6,3114.0,0.001]
[1768142708650,0.95170304,3114.6,3114.0,0.32233043]
[1768142711190,0.95170304,3114.6,3114.0,3.53361868]
[1768142712380,0.255,3114.7,3114.0,3.53361868]
[1768142712553,1.20670304,3114.7,3114.0,3.53361868]
[1768142712888,1.20670304,3114.7,3114.1,0.44940071]
[1768142714791,1.20670304,3114.7,3114.1,3.66059755]
[1768142715079,0.255,3114.7,3114.1,4.6201827]
[1768142715783,0.255,3114.7,3114.1,1.40898586]
[1768142715983,0.255,3114.7,3114.1,4.62016696]
[1768142716152,0.255,3114.7,3114.2,1.45383489]
[1768142716358,0.255,3114.7,3114.2,0.49424974]
[1768142716759,0.95170304,3114.6,3114.2,0.49424974]
[1768142716961,0.255,3114.7,3114.2,0.49424974]
[1768142717586,0.255,3114.7,3114.6,0.02030634]
[1768142723674,0.002,3114.8,3114.6,0.02030634]
[1768142729305,0.002,3114.8,3114.6,0.97989149]
[1768142729681,0.95170304,3115.2,3114.6,0.02030634]
[1768142729872,0.95170304,3115.2,3114.6,0.3435059]
[1768142730564,0.95370304,3115.3,3114.6,0.3435059]
[1768142730801,0.95370304,3115.3,3114.6,1.30309105]
[1768142731892,0.95370304,3115.3,3114.7,0.95958515]
[1768142732282,0.95370304,3115.3,3114.6,0.3435059]
[1768142732482,0.95370304,3115.3,3114.6,1.30309105]
[1768142732697,0.002,3115.3,3114.6,1.30309105]
[1768142733285,0.95170304,3115.2,3114.6,0.02030634]
[1768142735400,1.01655418,3115.1,3114.6,0.02030634]
[1768142735599,0.99473639,3115.1,3114.6,0.02030634]
[1768142736110,0.99473639,3114.9,3114.6,0.02030634]
[1768142738203,0.99473639,3114.9,3114.5,0.00080344]
[1768142741120,3.21027691,3115.0,3114.5,0.00080344]
[1768142741419,4.2050133,3115.0,3114.5,0.00080344]
[1768142741721,4.2050133,3115.0,3114.8,0.001]
[1768142742221,0.002,3114.9,3114.8,0.001]
[1768142757600,0.002,3114.9,3114.5,0.00080344]
[1768142758348,0.99673639,3114.9,3114.5,0.00080344]
[1768142759115,0.002,3114.9,3114.5,0.00080344]
[1768142760253,1.08994695,3114.9,3114.5,0.00080344]
[1768142763372,3.210479,3114.8,3114.5,0.00080344]
[1768142763734,3.210479,3114.8,3114.5,0.94880047]
[1768142765364,3.210479,3114.8,3114.5,0.00080344]
[1768142765751,0.002,3114.9,3114.5,0.00080344]
[1768142766135,0.002,3114.9,3114.5,0.94880047]
[1768142766465,0.002,3114.9,3114.8,0.001]
[1768142766648,0.66945457,3114.9,3114.5,0.00080344]
[1768142768171,3.210479,3114.8,3114.5,0.00080344]
[1768142769172,3.210479,3114.8,3114.5,0.96758747]
[1768142770685,3.21242927,3114.9,3114.5,0.96758747]
[1768142772873,0.002,3114.9,3114.5,0.96758747]
[1768142777399,3.95e-06,3115.2,3114.6,0.96678403]
[1768142777992,3.95e-06,3115.2,3114.8,0.96778403]
[1768142780294,3.95e-06,3115.2,3114.8,0.001]
[1768142781305,3.95e-06,3115.2,3114.8,0.96778403]
[1768142783404,3.95e-06,3115.2,3114.8,0.001]
[1768142784176,1.07959847,3115.2,3114.8,0.001]
[1768142784376,1.9917239,3115.2,3114.8,0.001]
[1768142784590,6.42033962,3115.1,3114.8,0.001]
[1768142787205,7.33246505,3115.1,3114.8,0.001]
[1768142789675,0.002,3114.9,3114.8,0.001]
[1768142791717,3.21237593,3114.9,3114.8,0.001]
[1768142792912,3.0617958,3114.9,3114.8,0.001]
[1768142793085,2.53422235,3114.9,3114.8,0.001]
[1768142793287,3.21027904,3115.0,3114.8,0.001]
[1768142793717,3.21037593,3114.9,3114.8,0.001]
[1768142793912,3.21007071,3115.2,3114.8,0.001]
[1768142794317,3.9434867,3115.2,3114.8,0.001]
[1768142794616,8.14019664,3115.2,3114.8,0.001]
[1768142800624,0.98664318,3115.1,3114.8,0.001]
[1768142800826,6.42054574,3115.0,3114.8,0.001]
[1768142801497,2.66696972,3115.0,3114.8,0.001]
[1768142801692,6.42054574,3115.0,3114.8,0.001]
[1768142802099,0.002,3114.9,3114.8,0.001]
[1768142802718,3.95e-06,3115.2,3114.8,0.001]
[1768142805102,0.98664713,3115.2,3114.5,0.00080344]
[1768142807532,7.4069828,3115.1,3114.5,0.00080344]
[1768142810612,0.98664318,3115.0,3114.5,0.00080344]
[1768142810808,0.98664713,3115.2,3114.5,0.00080344]
[1768142811014,3.2101931,3115.1,3114.5,0.00080344]
[1768142811212,6.4203862,3115.1,3114.5,0.00080344]
[1768142811412,7.40702938,3115.1,3114.5,0.00080344]
[1768142811826,6.4203862,3115.1,3114.5,0.93122732]
[1768142813031,6.42013747,3115.2,3114.5,0.93122732]
[1768142814027,6.42013747,3115.2,3114.8,0.001]
[1768142814226,0.002,3114.9,3114.8,0.001]
[1768142814545,0.002,3114.9,3114.5,0.00080344]
[1768142814752,0.002,3114.9,3114.6,0.15795745]
[1768142815917,0.002,3114.9,3114.5,0.00080344]
[1768142818622,0.98864318,3114.9,3114.5,0.00080344]
[1768142820964,7.40760118,3114.8,3114.5,0.00080344]
[1768142822246,0.98664318,3114.7,3114.5,0.00080344]
[1768142822559,0.98664318,3114.6,3114.5,0.00080344]
[1768142822960,0.98664318,3114.4,3114.3,0.001]
[1768142823565,0.98664318,3114.4,3114.0,0.001]
[1768142825362,0.92456374,3114.2,3114.0,0.001]
[1768142825568,0.92256375,3114.2,3114.0,0.001]
[1768142827984,4.13367273,3114.2,3114.0,0.001]
[1768142828481,0.92256375,3114.2,3114.0,0.001]
[1768142828992,3.2110254,3114.3,3114.0,0.001]
[1768142831480,0.91308627,3114.3,3114.0,0.001]
[1768142834303,0.91308627,3114.1,3114.0,0.001]
[1768142835013,7.33528137,3114.2,3114.0,0.001]
[1768142835324,0.42779178,3114.1,3113.7,0.001]
[1768142835522,6.4221951,3114.2,3113.7,0.001]
[1768142835728,7.33528137,3114.2,3113.7,0.001]
[1768142836107,3.21109755,3114.2,3113.7,0.001]
[1768142836459,3.2118701,3114.3,3113.7,0.001]
[1768142836623,3.2118701,3114.3,3113.7,0.16095744]
[1768142837722,6.42294788,3114.3,3113.7,0.16095744]
[1768142837929,3.2118701,3114.3,3113.7,0.16095744]
[1768142838250,0.002,3114.8,3113.8,0.15995744]
[1768142838251,0.91508627,3114.8,3113.8,0.15995744]
[1768142838455,0.91308627,3114.6,3113.9,0.03291742]
[1768142838750,3.21058207,3114.7,3114.0,0.001]
[1768142838909,0.002,3114.8,3114.0,0.001]
[1768142838910,0.91308627,3114.6,3114.0,0.001]
[1768142839114,0.91308627,3114.7,3114.0,0.001]
[1768142840451,6.42306358,3114.8,3114.0,0.9805713]
[1768142844829,0.002,3114.8,3114.0,0.9805713]
[1768142848458,0.002,3114.8,3114.1,0.9795713]
[1768142848754,0.002,3114.8,3114.3,0.9795713]
[1768142850159,0.002,3114.8,3114.3,0.9805713]
[1768142855257,0.002,3114.8,3114.3,0.001]
[1768142856287,3.212479,3114.8,3114.3,0.001]
[1768142856583,0.00280344,3114.9,3114.3,0.97189678]
[1768142856769,3.210479,3114.8,3114.3,0.97189678]
[1768142857381,3.210479,3114.8,3114.3,0.001]
[1768142857554,7.38029511,3114.8,3114.3,0.001]
[1768142858562,0.95933711,3114.7,3114.3,0.001]
[1768142858756,0.73802951,3114.6,3114.3,0.001]
[1768142858951,0.95933711,3114.7,3114.3,0.001]
[1768142860590,7.38070743,3114.6,3114.3,0.001]
[1768142860889,0.95933711,3114.5,3114.3,0.001]
[1768142862493,4.17022845,3114.4,3114.3,0.001]
[1768142864289,7.38070743,3114.6,3114.3,0.001]
[1768142865091,0.95933711,3114.5,3114.3,0.001]
[1768142867089,3.21089134,3114.4,3114.3,0.001]
[1768142869085,6.4214476,3114.6,3114.3,0.001]
[1768142873810,7.38078471,3114.6,3114.3,0.001]
[1768142873971,0.95933711,3114.5,3114.3,0.001]
[1768142876006,3.21089134,3114.4,3114.3,0.001]
[1768142876216,0.95933711,3114.5,3114.3,0.001]
[1768142876571,3.21089134,3114.4,3114.3,0.001]
[1768142878123,3.21071618,3114.6,3114.3,0.001]
[1768142878605,6.42143236,3114.6,3114.3,0.001]
[1768142880407,3.21071618,3114.6,3114.3,0.001]
[1768142884415,6.420958,3114.8,3114.3,0.001]
[1768142885903,6.420958,3114.8,3114.6,0.001]
[1768142886103,0.73830986,3114.7,3114.6,0.001]
[1768142886414,3.94889193,3114.7,3114.6,0.001]
[1768142889022,4.86344616,3114.7,3114.6,0.001]
[1768142890625,3.94889193,3114.7,3114.6,0.001]
[1768142890826,3.21058207,3114.7,3114.6,0.001]
[1768142892759,7.33810953,3114.9,3114.6,0.001]
[1768142897641,0.91455423,3114.8,3114.3,0.001]
[1768142898051,0.002,3114.6,3114.3,0.001]
[1768142900143,0.91655423,3114.6,3114.3,0.001]
[1768142900548,6.42157648,3114.5,3114.3,0.001]
[1768142901044,3.21078824,3114.5,3114.3,0.001]
[1768142905945,6.42157648,3114.5,3114.3,0.001]
[1768142908553,3.21078824,3114.5,3114.3,0.001]
[1768142910058,6.42157648,3114.5,3114.3,0.001]
[1768142913629,0.91455423,3114.4,3114.3,0.001]
[1768142914161,0.99435354,3114.3,3114.0,0.001]
[1768142915279,6.67357648,3114.5,3114.0,0.001]
[1768142915464,7.66793002,3114.5,3114.0,0.001]
[1768142916648,7.41593002,3114.5,3114.0,0.001]
[1768142917432,6.42157648,3114.5,3114.0,0.95604687]
[1768142918460,7.41019423,3114.5,3114.0,0.95604687]
[1768142921662,7.41019423,3114.5,3114.3,0.001]
[1768142942522,4.20524488,3114.4,3114.3,0.001]
[1768142944620,0.98861775,3114.5,3114.3,0.001]
[1768142944822,6.42168936,3114.5,3114.3,0.001]
[1768142945114,6.42168936,3114.5,3114.0,0.001]
[1768142946119,0.002,3114.6,3114.0,0.98464426]
[1768142948320,0.002,3114.6,3114.0,1.52901798]
[1768142949640,0.002,3114.6,3114.0,0.98464426]
[1768142952922,0.002,3114.6,3114.0,0.001]
[1768142953599,0.97386746,3114.6,3114.0,0.001]
[1768142954621,0.97386746,3114.6,3113.7,0.001]
[1768142954622,0.00080336,3114.3,3113.7,0.001]
[1768142954820,0.00080336,3114.3,3113.7,0.94736156]